bitfinex/quotes_SOLUSD_20250112
["timestamp","ask_amount","ask_price","bid_price","bid_amount"]
[1736667747791,20.0,186.63,186.6,1.01]
[1736667748885,8.92971867,186.69,186.62,8.92971867]
[1736667749088,8.92971867,186.69,186.63,8.92971867]
[1736667749262,8.92971867,186.7,186.64,8.92971867]
[1736667754991,8.92971867,186.7,186.65,8.92971867]
[1736667755486,81.9,186.72,186.63,6.2951]
[1736667755487,28.92971867,186.69,186.64,8.92971867]
[1736667757503,28.92971867,186.69,186.63,15.22481867]
[1736667757806,28.92971867,186.68,186.6,85.1111]
[1736667757971,8.92971867,186.64,186.6,83.61]
[1736667758172,8.92971867,186.61,186.6,1.01]
[1736667768107,20.0,186.62,186.6,1.01]
[1736667768406,8.92971867,186.61,186.6,1.01]
[1736667769894,28.92971867,186.62,186.6,1.01]
[1736667772597,8.92971867,186.61,186.6,1.01]
[1736667790626,20.0,186.61,186.6,1.01]
[1736667790930,28.92971867,186.61,186.6,1.01]
[1736667831080,52.70660267,186.61,186.6,1.01]
[1736667834288,8.92971867,186.61,186.6,1.01]
[1736667834472,20.0,186.62,186.6,1.01]
[1736667834673,8.92971867,186.61,186.6,1.01]
[1736667853809,20.0,186.58,186.52,1.6194]
[1736667853981,8.92971867,186.53,186.52,1.6194]
[1736667858438,8.92971867,186.55,186.52,1.6194]
[1736667862422,20.0,186.58,186.52,1.6194]
[1736667862626,20.0,186.54,186.52,1.6194]
[1736667863325,20.0,186.58,186.52,10.54911867]
[1736667863497,8.92971867,186.57,186.52,10.54911867]
[1736667864197,8.92971867,186.57,186.52,1.6194]
[1736667867646,8.92971867,186.53,186.47,8.43194581]
[1736667867805,8.92971867,186.48,186.47,8.43194581]
[1736667868325,8.92971867,186.48,186.42,7.8462]
[1736667868326,8.92971867,186.48,186.43,91.03194581]
[1736667868502,8.92971867,186.46,186.43,91.03194581]
[1736667868703,8.92971867,186.46,186.43,8.43194581]
[1736667870117,8.92971867,186.46,186.42,7.8462]
[1736667871337,8.92971867,186.47,186.42,7.8462]
[1736667872642,20.0,186.5,186.42,90.4462]
[1736667872840,8.92971867,186.48,186.42,99.37591867]
[1736667876333,8.92971867,186.47,186.42,90.4462]
[1736667876633,8.92971867,186.44,186.4,82.6]
[1736667877219,8.92971867,186.43,186.38,6.24]
[1736667878254,35.71887468,186.48,186.37,93.13591867]
[1736667878255,8.92971867,186.41,186.37,1.6062]
[1736667881267,8.92971867,186.42,186.37,1.6062]
[1736667881757,8.92971867,186.43,186.37,10.53591867]
[1736667883165,8.92971867,186.43,186.38,8.92971867]
[1736667885264,20.0,186.44,186.38,8.92971867]
[1736667885441,8.92971867,186.43,186.38,8.92971867]
[1736667885641,28.92971867,186.44,186.39,8.92971867]
[1736667887063,20.0,186.44,186.39,8.92971867]
[1736667887366,28.92971867,186.44,186.39,8.92971867]
[1736667888491,28.92971867,186.44,186.38,91.52971867]
[1736667888669,8.92971867,186.43,186.38,82.6]
[1736667889359,20.0,186.44,186.39,8.92971867]
[1736667892071,5.0,186.51,186.39,91.52971867]
[1736667892072,81.9,186.5,186.39,91.52971867]
[1736667892283,8.92971867,186.48,186.42,8.92971867]
[1736667895087,8.92971867,186.47,186.41,91.52971867]
[1736667897792,8.92971867,186.46,186.41,82.6]
[1736667898798,8.92971867,186.46,186.41,91.52971867]
[1736667900592,8.92971867,186.46,186.41,82.6]
[1736667900894,8.92971867,186.45,186.41,82.6]
[1736667901480,8.92971867,186.46,186.41,82.6]
[1736667901907,8.92971867,186.46,186.41,91.52971867]
[1736667905704,20.0,186.48,186.42,8.92971867]
[1736667905875,20.0,186.48,186.43,8.92971867]
[1736667907389,1.5913,186.53,186.44,8.92971867]
[1736667907570,8.92971867,186.51,186.46,8.92971867]
[1736667908080,8.92971867,186.51,186.45,91.52971867]
[1736667908281,8.92971867,186.5,186.45,91.52971867]
[1736667912705,8.92971867,186.5,186.45,82.6]
[1736667919509,8.92971867,186.5,186.45,91.52971867]
[1736667922806,8.92971867,186.48,186.43,93.03411867]
[1736667925012,8.92971867,186.48,186.43,84.1044]
[1736667929893,8.92971867,186.48,186.43,93.03411867]
[1736667930094,8.92971867,186.49,186.44,8.92971867]
[1736667933733,20.0,186.51,186.44,8.92971867]
[1736667933890,28.92971867,186.51,186.46,8.92971867]
[1736667934095,8.92971867,186.5,186.45,8.92971867]
[1736667935532,8.92971867,186.5,186.44,8.92971867]
[1736667937136,28.92971867,186.51,186.45,8.92971867]
[1736667937334,8.92971867,186.5,186.45,8.92971867]
[1736667938235,20.0,186.51,186.45,8.92971867]
[1736667938533,8.92971867,186.5,186.45,8.92971867]
[1736667940034,20.0,186.51,186.45,8.92971867]
[1736667940234,20.0,186.51,186.47,8.92971867]
[1736667940408,20.0,186.51,186.43,84.1044]
[1736667940409,28.92971867,186.51,186.45,8.92971867]
[1736667943742,20.0,186.51,186.45,8.92971867]
[1736667944045,28.92971867,186.51,186.45,8.92971867]
[1736667944331,28.92971867,186.51,186.45,91.52971867]
[1736667946442,20.0,186.53,186.45,91.52971867]
[1736667946634,8.92971867,186.51,186.45,91.52971867]
[1736667954157,20.0,186.53,186.45,91.52971867]
[1736667954364,20.0,186.53,186.46,8.92971867]
[1736667954665,8.92971867,186.52,186.46,8.92971867]
[1736667956371,8.92971867,186.52,186.46,91.52971867]
[1736667958148,8.92971867,186.51,186.46,82.6]
[1736667970472,8.92971867,186.48,186.46,82.6]
[1736667974683,8.92971867,186.49,186.46,82.6]
[1736667974867,8.92971867,186.5,186.46,82.6]
[1736667975785,20.0,186.53,186.47,8.92971867]
[1736667976091,28.92971867,186.53,186.47,8.92971867]
[1736667978973,8.92971867,186.52,186.47,8.92971867]
[1736667980187,8.0389,186.58,186.49,91.52971867]
[1736667980395,8.92971867,186.56,186.5,8.92971867]
[1736667980993,20.0,186.53,186.5,91.52971867]
[1736667981608,20.0,186.53,186.5,82.6]
[1736667982802,20.0,186.53,186.5,91.52971867]
[1736667983307,81.9,186.6,186.52,8.92971867]
[1736667983494,8.92971867,186.6,186.54,8.92971867]
[1736667985490,8.92971867,186.61,186.55,8.92971867]
[1736667986288,36.908479,186.63,186.55,219.0103]
[1736667986289,28.899979,186.63,186.55,219.0103]
[1736667986612,8.92971867,186.66,186.6,8.92971867]
[1736667987475,8.92971867,186.66,186.56,141.191]
[1736667987684,8.92971867,186.58,186.55,82.6]
[1736667987888,8.92971867,186.57,186.52,6.291]
[1736667988083,8.92971867,186.56,186.51,84.1103]
[1736667990321,8.92971867,186.53,186.47,1.5103]
[1736667990527,8.92971867,186.53,186.47,10.44001867]
[1736667991387,8.92971867,186.53,186.47,93.04001867]
[1736667992806,8.92971867,186.53,186.47,84.1103]
[1736667993007,8.92971867,186.53,186.47,93.04001867]
[1736667997308,8.92971867,186.54,186.47,93.04001867]
[1736667998213,8.92971867,186.54,186.48,8.92971867]
[1736667999710,8.92971867,186.53,186.47,227.94001867]
[1736668000833,8.92971867,186.54,186.48,91.52971867]
[1736668002536,1.6206,186.57,186.49,8.92971867]
[1736668002741,1.6206,186.57,186.5,8.92971867]
[1736668002911,8.92971867,186.56,186.5,8.92971867]
[1736668004231,8.92971867,186.56,186.5,91.52971867]
[1736668005831,8.92971867,186.56,186.51,8.92971867]
[1736668006030,10.55031867,186.57,186.51,8.92971867]
[1736668007551,1.6206,186.57,186.52,91.52971867]
[1736668007719,8.92971867,186.59,186.53,8.92971867]
[1736668007924,1.5562,186.62,186.53,91.52971867]
[1736668008128,8.92971867,186.59,186.53,91.52971867]
[1736668008326,20.0,186.61,186.53,91.52971867]
[1736668008666,8.92971867,186.59,186.53,91.52971867]
[1736668008850,20.0,186.61,186.53,91.52971867]
[1736668009151,20.0,186.61,186.56,8.92971867]
[1736668009314,10.48591867,186.62,186.56,8.92971867]
[1736668010821,28.92971867,186.61,186.56,8.92971867]
[1736668011320,28.92971867,186.61,186.53,82.6]
[1736668011628,28.92971867,186.61,186.55,8.92971867]
[1736668013252,28.92971867,186.61,186.55,91.52971867]
[1736668015054,8.92971867,186.6,186.55,91.52971867]
[1736668015461,8.92971867,186.6,186.55,82.6]
[1736668020241,8.92971867,186.6,186.55,91.52971867]
[1736668026575,8.92971867,186.6,186.55,82.6]
[1736668027858,8.92971867,186.6,186.55,91.52971867]
[1736668028472,8.92971867,186.61,186.55,91.52971867]
[1736668028773,8.92971867,186.6,186.55,91.52971867]
[1736668029582,20.0,186.62,186.56,8.92971867]
[1736668029747,8.92971867,186.61,186.56,8.92971867]
[1736668030179,8.92971867,186.61,186.55,91.52971867]
[1736668031381,8.92971867,186.6,186.55,91.52971867]
[1736668036679,20.0,186.62,186.55,91.52971867]
[1736668036887,1.6471,186.66,186.57,8.92971867]
[1736668037067,8.92971867,186.64,186.58,8.92971867]
[1736668037576,8.92971867,186.65,186.59,8.92971867]
[1736668039981,8.92971867,186.65,186.59,91.52971867]
[1736668040284,8.92971867,186.66,186.6,91.52971867]
[1736668040873,8.92971867,186.66,186.61,8.92971867]
[1736668041385,8.92971867,186.67,186.61,91.52971867]
[1736668041585,8.92971867,186.66,186.61,91.52971867]
[1736668041766,8.92971867,186.66,186.61,82.6]
[1736668042795,20.0,186.69,186.61,91.52971867]
[1736668043000,8.92971867,186.66,186.61,82.6]
[1736668043292,8.92971867,186.64,186.61,82.6]
[1736668044791,20.0,186.69,186.61,82.6]
[1736668044987,8.92971867,186.64,186.61,82.6]
[1736668049697,7.92971867,186.64,186.61,82.6]
[1736668055188,8.92971867,186.62,186.59,82.6]
[1736668055389,8.92971867,186.6,186.59,82.6]
[1736668061231,8.92971867,186.6,186.56,82.6]
[1736668061510,8.92971867,186.59,186.56,82.6]
[1736668061877,20.0,186.62,186.56,82.6]
[1736668062082,8.92971867,186.59,186.56,82.6]
[1736668064704,20.0,186.63,186.56,82.6]
[1736668064922,8.92971867,186.59,186.56,82.6]
[1736668065719,7.92971867,186.59,186.56,82.6]
[1736668066506,8.92971867,186.6,186.56,82.6]
[1736668075619,20.0,186.62,186.56,91.52971867]
[1736668075822,8.92971867,186.61,186.56,91.52971867]
[1736668076121,8.92971867,186.6,186.56,82.6]
[1736668077302,8.92971867,186.61,186.56,91.52971867]
[1736668083842,8.92971867,186.61,186.56,82.6]
[1736668088763,8.92971867,186.6,186.56,82.6]
[1736668089048,8.92971867,186.58,186.56,82.6]
[1736668092636,8.92971867,186.59,186.56,82.6]
[1736668096668,8.92971867,186.6,186.56,82.6]
[1736668097267,20.0,186.62,186.56,82.6]
[1736668097560,8.92971867,186.61,186.56,91.52971867]
[1736668100361,8.92971867,186.61,186.56,82.6]
[1736668101862,28.92971867,186.62,186.56,91.52971867]
[1736668103066,28.92971867,186.62,186.56,8.92971867]
[1736668105265,20.0,186.62,186.56,8.92971867]
[1736668105446,28.92971867,186.62,186.56,8.92971867]
[1736668106770,6.6478,186.68,186.57,8.92971867]
[1736668106961,8.92971867,186.65,186.59,8.92971867]
[1736668107167,8.92971867,186.66,186.6,91.52971867]
[1736668107470,20.0,186.63,186.6,82.6]
[1736668107671,28.92971867,186.63,186.6,82.6]
[1736668108671,8.92971867,186.61,186.6,82.6]
[1736668111950,8.92971867,186.61,186.58,82.6]
[1736668112165,8.92971867,186.6,186.58,82.6]
[1736668116388,20.0,186.64,186.58,82.6]
[1736668116689,8.92971867,186.62,186.58,82.6]
[1736668117377,8.92971867,186.63,186.58,82.6]
[1736668117584,8.92971867,186.64,186.58,91.52971867]
[1736668120584,8.92971867,186.63,186.58,82.6]
[1736668121103,8.92971867,186.63,186.58,217.5]
[1736668122296,8.92971867,186.62,186.58,82.6]
[1736668122482,8.92971867,186.61,186.58,82.6]
[1736668128898,8.92971867,186.62,186.58,82.6]
[1736668129200,28.92971867,186.63,186.58,82.6]
[1736668131502,8.92971867,186.62,186.58,82.6]
[1736668132401,20.0,186.66,186.58,82.6]
[1736668132708,8.92971867,186.63,186.58,82.6]
[1736668133299,8.92971867,186.64,186.58,91.52971867]
[1736668134387,20.0,186.66,186.59,8.92971867]
[1736668134595,8.92971867,186.65,186.59,8.92971867]
[1736668134787,20.0,186.66,186.59,8.92971867]
[1736668134982,8.92971867,186.65,186.59,8.92971867]
[1736668135310,20.0,186.66,186.59,8.92971867]
[1736668135512,8.92971867,186.65,186.59,8.92971867]
[1736668136105,8.92971867,186.65,186.59,226.42971867]
[1736668137189,8.92971867,186.67,186.61,8.92971867]
[1736668137508,8.92971867,186.67,186.61,226.42971867]
[1736668140730,8.92971867,186.68,186.62,91.52971867]
[1736668141030,8.92971867,186.68,186.62,226.42971867]
[1736668142912,8.92971867,186.67,186.62,217.5]
[1736668146943,43.776884,186.72,186.62,217.5]
[1736668147125,8.92971867,186.67,186.62,217.5]
[1736668148241,8.92971867,186.68,186.62,226.42971867]
[1736668149721,8.92971867,186.67,186.62,217.5]
[1736668155862,8.92971867,186.68,186.62,226.42971867]
[1736668161050,8.92971867,186.69,186.62,226.42971867]
[1736668162448,81.9,186.76,186.6,1.5507]
[1736668162449,1.6462,186.77,186.65,226.42971867]
[1736668162635,8.92971867,186.7,186.65,226.42971867]
[1736668163966,8.92971867,186.71,186.65,226.42971867]
[1736668166475,8.92971867,186.74,186.68,226.42971867]
[1736668166678,8.92971867,186.75,186.69,226.42971867]
[1736668167043,8.92971867,186.74,186.69,217.5]
[1736668167238,8.92971867,186.7,186.69,82.6]
[1736668167462,8.92971867,186.7,186.64,82.6]
[1736668167643,8.92971867,186.66,186.64,82.6]
[1736668175671,20.0,186.7,186.64,82.6]
[1736668175975,8.92971867,186.69,186.64,217.5]
[1736668176472,8.92971867,186.71,186.65,226.42971867]
[1736668176638,28.92971867,186.72,186.66,8.92971867]
[1736668176845,8.92971867,186.72,186.66,8.92971867]
[1736668177969,20.0,186.74,186.67,8.92971867]
[1736668178142,8.92971867,186.73,186.67,8.92971867]
[1736668180253,8.92971867,186.72,186.67,8.92971867]
[1736668180866,8.92971867,186.72,186.67,226.42971867]
[1736668184262,8.92971867,186.72,186.67,217.5]
[1736668186173,3.67830687,186.78,186.69,8.92971867]
[1736668186352,8.92971867,186.76,186.68,219.0426]
[1736668186556,8.92971867,186.73,186.68,227.97231867]
[1736668186763,8.92971867,186.73,186.68,219.0426]
[1736668188574,8.92971867,186.73,186.68,227.97231867]
[1736668190985,8.92971867,186.74,186.68,227.97231867]
[1736668191349,20.0,186.76,186.68,227.97231867]
[1736668191683,8.92971867,186.74,186.69,8.92971867]
[1736668193970,8.92971867,186.74,186.68,227.97231867]
[1736668194267,8.92971867,186.73,186.68,219.0426]
[1736668198301,8.92971867,186.73,186.68,227.97231867]
[1736668198917,8.92971867,186.74,186.69,8.92971867]
[1736668201698,8.92971867,186.73,186.68,227.97231867]
[1736668202600,8.92971867,186.74,186.68,227.97231867]
[1736668202778,20.0,186.75,186.68,227.97231867]
[1736668202978,8.92971867,186.74,186.68,227.97231867]
[1736668203198,20.0,186.75,186.68,227.97231867]
[1736668203396,8.92971867,186.74,186.68,227.97231867]
[1736668203801,28.92971867,186.75,186.69,226.42971867]
[1736668203995,20.0,186.75,186.7,8.92971867]
[1736668204506,8.92971867,186.76,186.7,8.92971867]
[1736668207207,8.92971867,186.76,186.71,8.92971867]
[1736668207376,8.92971867,186.76,186.71,226.42971867]
[1736668207584,8.92971867,186.75,186.71,217.5]
[1736668216502,10.0434721,186.83,186.73,8.92971867]
[1736668216690,10.0434721,186.83,186.75,8.92971867]
[1736668216905,8.92971867,186.8,186.75,8.92971867]
[1736668219409,8.92971867,186.77,186.73,219.1552]
[1736668219587,8.92971867,186.76,186.73,219.1552]
[1736668220299,8.92971867,186.76,186.73,217.5]
[1736668220823,8.61771803,186.85,186.74,8.92971867]
[1736668220998,8.92971867,186.8,186.74,226.42971867]
[1736668222119,8.92971867,186.8,186.75,8.92971867]
[1736668223302,8.92971867,186.81,186.75,8.92971867]
[1736668225722,8.92971867,186.81,186.75,226.42971867]
[1736668227832,22.10641803,186.85,186.76,8.92971867]
[1736668228006,2.60290325,186.87,186.77,8.92971867]
[1736668228007,8.92971867,186.83,186.77,8.92971867]
[1736668228331,0.99280325,186.87,186.79,1.6338]
[1736668228502,8.92971867,186.85,186.79,228.06351867]
[1736668229527,20.0,186.89,186.79,228.06351867]
[1736668229731,8.92971867,186.85,186.79,228.06351867]
[1736668230449,20.0,186.9,186.8,8.92971867]
[1736668230738,8.92971867,186.86,186.8,227.23242996]
[1736668230914,8.92971867,186.86,186.8,226.42971867]
[1736668232251,20.0,186.9,186.8,217.5]
[1736668232555,8.92971867,186.88,186.82,8.92971867]
[1736668234912,0.99280325,186.91,186.81,0.80266723]
[1736668234913,0.99280325,186.91,186.81,9.7323859]
[1736668235237,8.92971867,186.87,186.81,8.92971867]
[1736668235440,8.92971867,186.87,186.81,9.73238671]
[1736668237623,0.99280325,186.91,186.82,8.92971867]
[1736668237624,8.92971867,186.88,186.82,8.92971867]
[1736668237842,8.92971867,186.89,186.83,8.92971867]
[1736668238851,8.92971867,186.88,186.82,226.42971867]
[1736668242552,8.92971867,186.89,186.84,136.5085]
[1736668242741,8.92971867,186.91,186.85,227.23223889]
[1736668242930,8.92971867,186.91,186.85,226.42971867]
[1736668243935,6.1636,186.99,186.87,8.92971867]
[1736668244146,8.92971867,186.93,186.87,226.42971867]
[1736668244344,8.35003722,186.99,186.88,8.92971867]
[1736668244345,8.92971867,186.94,186.88,8.92971867]
[1736668246058,2.18643722,186.99,186.9,8.92971867]
[1736668246356,8.92971867,186.96,186.9,8.92971867]
[1736668247146,20.0,186.99,186.9,10.51311867]
[1736668247351,8.92971867,186.96,186.9,11.31535312]
[1736668248473,8.92971867,186.96,186.9,10.51311867]
[1736668248640,20.0,186.99,186.9,10.51311867]
[1736668248641,8.92971867,186.93,186.9,217.5]
[1736668248845,8.92971867,186.92,186.9,82.6]
[1736668250869,8.92971867,186.91,186.9,82.6]
[1736668254867,8.92971867,186.91,186.87,217.5]
[1736668255081,8.92971867,186.88,186.87,217.5]
[1736668257040,8.92971867,186.88,186.8,225.5325]
[1736668257383,8.92971867,186.84,186.8,225.5325]
[1736668259247,8.92971867,186.86,186.81,8.92971867]
[1736668259573,8.92971867,186.87,186.81,226.42971867]
[1736668260670,20.0,186.89,186.81,226.42971867]
[1736668260846,8.92971867,186.87,186.81,226.42971867]
[1736668261173,8.92971867,186.86,186.81,217.5]
[1736668261769,8.92971867,186.84,186.81,82.6]
[1736668262046,8.92971867,186.82,186.81,82.6]
[1736668265362,8.92971867,186.82,186.75,234.46221867]
[1736668265567,8.92971867,186.8,186.75,225.5325]
[1736668265754,8.92971867,186.79,186.75,219.0834]
[1736668265960,8.92971867,186.81,186.76,8.92971867]
[1736668266275,8.92971867,186.83,186.77,226.42971867]
[1736668266963,8.92971867,186.84,186.78,226.42971867]
[1736668267170,8.92971867,186.85,186.79,226.42971867]
[1736668267768,8.92971867,186.86,186.8,226.42971867]
[1736668267975,8.92971867,186.87,186.81,8.92971867]
[1736668268694,8.92971867,186.86,186.81,226.42971867]
[1736668270196,8.92971867,186.87,186.81,226.42971867]
[1736668270781,8.92971867,186.86,186.81,217.5]
[1736668271999,8.92971867,186.85,186.81,82.6]
[1736668272173,8.92971867,186.84,186.81,217.5]
[1736668272998,8.92971867,186.85,186.81,217.5]
[1736668275611,8.92971867,186.84,186.81,217.5]
[1736668278712,8.92971867,186.83,186.81,217.5]
[1736668279893,8.92971867,186.82,186.81,217.5]
[1736668280093,8.92971867,186.82,186.81,82.6]
[1736668281015,8.92971867,186.82,186.77,82.6]
[1736668281312,8.92971867,186.78,186.77,82.6]
[1736668285300,8.92971867,186.79,186.77,82.6]
[1736668285511,28.92971867,186.81,186.77,82.6]
[1736668285822,8.92971867,186.83,186.77,226.42971867]
[1736668290999,1.5539,186.88,186.79,226.42971867]
[1736668291232,8.92971867,186.85,186.8,8.92971867]
[1736668291731,8.92971867,186.85,186.79,226.42971867]
[1736668294311,20.0,186.86,186.8,8.92971867]
[1736668294515,8.92971867,186.88,186.82,226.42971867]
[1736668295706,8.92971867,186.89,186.83,226.42971867]
[1736668296613,1.648,186.93,186.83,226.42971867]
[1736668296812,8.92971867,186.89,186.83,226.42971867]
[1736668298614,8.92971867,186.9,186.84,226.42971867]
[1736668299422,8.92971867,186.89,186.84,217.5]
[1736668301241,8.92971867,186.9,186.84,217.5]
[1736668301423,8.92971867,186.89,186.84,217.5]
[1736668305441,8.92971867,186.91,186.85,227.23227515]
[1736668305646,8.92971867,186.91,186.85,226.42971867]
[1736668306930,8.92971867,186.9,186.85,217.5]
[1736668312243,8.92971867,186.91,186.85,226.42971867]
[1736668316059,8.92971867,186.9,186.85,217.5]
[1736668319356,8.92971867,186.89,186.85,217.5]
[1736668319527,8.92971867,186.88,186.85,217.5]
[1736668320655,8.92971867,186.87,186.85,217.5]
[1736668321752,35.71887468,186.93,186.85,217.5]
[1736668321948,8.92971867,186.88,186.85,217.5]
[1736668323553,8.92971867,186.89,186.85,217.5]
[1736668324731,8.92971867,186.88,186.85,82.6]
[1736668324930,8.92971867,186.87,186.85,82.6]
[1736668325259,8.92971867,186.86,186.85,82.6]
[1736668325440,20.0,186.84,186.83,134.9]
[1736668325642,8.92971867,186.84,186.8,217.5]
[1736668325842,8.92971867,186.81,186.8,82.6]
[1736668326264,8.92971867,186.82,186.8,82.6]
[1736668327349,8.92971867,186.81,186.8,82.6]
[1736668329141,8.92971867,186.81,186.75,217.5]
[1736668329340,8.92971867,186.79,186.75,217.5]
[1736668329558,37.23917468,186.84,186.75,217.5]
[1736668329559,8.92971867,186.78,186.75,217.5]
[1736668330239,8.92971867,186.79,186.75,217.5]
[1736668332467,8.92971867,186.78,186.75,217.5]
[1736668333385,8.92971867,186.79,186.75,217.5]
[1736668341973,20.0,186.8,186.75,217.5]
[1736668342174,8.92971867,186.79,186.75,217.5]
[1736668342472,28.92971867,186.8,186.75,217.5]
[1736668342958,20.0,186.83,186.75,226.42971867]
[1736668343160,20.0,186.79,186.76,8.92971867]
[1736668343560,8.92971867,186.83,186.76,8.92971867]
[1736668343561,28.92971867,186.83,186.76,8.92971867]
[1736668344371,20.0,186.83,186.77,8.92971867]
[1736668344575,28.92971867,186.83,186.78,8.92971867]
[1736668345680,20.0,186.83,186.78,226.42971867]
[1736668345976,28.92971867,186.83,186.78,226.42971867]
[1736668346482,28.92971867,186.83,186.78,217.5]
[1736668351271,20.0,186.83,186.78,217.5]
[1736668352185,8.92971867,186.85,186.79,226.42971867]
[1736668353289,20.0,186.87,186.79,226.42971867]
[1736668353490,8.92971867,186.85,186.79,226.42971867]
[1736668353796,8.92971867,186.85,186.79,217.5]
[1736668353960,8.92971867,186.84,186.79,217.5]
[1736668356602,20.0,186.87,186.79,226.42971867]
[1736668356761,8.92971867,186.86,186.79,226.42971867]
[1736668357174,8.92971867,186.85,186.79,226.42971867]
[1736668361109,8.92971867,186.84,186.79,217.5]
[1736668362477,20.0,186.87,186.79,217.5]
[1736668362478,8.92971867,186.83,186.79,217.5]
[1736668363378,8.92971867,186.84,186.79,217.5]
[1736668364082,8.92971867,186.85,186.79,226.42971867]
[1736668364590,6.652,186.97,186.83,8.92971867]
[1736668364796,8.92971867,186.89,186.83,226.42971867]
[1736668368604,8.92971867,186.89,186.83,217.5]
[1736668370112,8.92971867,186.89,186.83,226.42971867]
[1736668372102,8.92971867,186.9,186.84,8.92971867]
[1736668374210,8.92971867,186.89,186.83,226.42971867]
[1736668376712,8.92971867,186.89,186.83,217.5]
[1736668377214,8.92971867,186.88,186.83,217.5]
[1736668377386,8.92971867,186.89,186.83,217.5]
[1736668382499,8.92971867,186.87,186.83,217.5]
[1736668384921,8.92971867,186.84,186.83,82.6]
[1736668410535,20.0,186.87,186.83,82.6]
[1736668410731,8.92971867,186.85,186.83,82.6]
[1736668415346,8.92971867,186.84,186.83,82.6]
[1736668418447,8.92971867,186.84,186.82,134.9]
[1736668418448,8.92971867,186.84,186.78,219.1046]
[1736668418745,8.92971867,186.81,186.78,217.5]
[1736668420654,8.92971867,186.82,186.78,217.5]
[1736668437560,8.92971867,186.81,186.78,217.5]
[1736668437938,8.92971867,186.8,186.78,217.5]
[1736668438867,27.57316468,186.86,186.78,217.5]
[1736668438868,8.92971867,186.79,186.78,217.5]
[1736668439167,8.92971867,186.79,186.78,82.6]
[1736668440271,8.92971867,186.81,186.78,82.6]
[1736668440659,8.92971867,186.82,186.78,82.6]
[1736668441373,8.92971867,186.81,186.78,82.6]
[1736668442982,8.92971867,186.82,186.78,82.6]
[1736668443860,20.0,186.83,186.78,82.6]
[1736668444249,20.0,186.83,186.78,91.52971867]
[1736668445184,8.92971867,186.83,186.78,82.6]
[1736668445565,8.92971867,186.82,186.78,82.6]
[1736668445764,8.92971867,186.81,186.78,82.6]
[1736668446563,8.92971867,186.82,186.78,82.6]
[1736668447373,8.92971867,186.82,186.78,217.5]
[1736668448265,8.92971867,186.81,186.78,217.5]
[1736668453376,8.92971867,186.81,186.78,82.6]
[1736668454994,8.92971867,186.82,186.78,82.6]
[1736668456704,20.0,186.84,186.78,82.6]
[1736668456884,8.92971867,186.82,186.78,82.6]
[1736668458295,8.92971867,186.81,186.78,82.6]
[1736668462174,8.92971867,186.82,186.78,82.6]
[1736668465491,8.92971867,186.81,186.78,82.6]
[1736668483926,8.92971867,186.82,186.78,82.6]
[1736668484240,8.92971867,186.81,186.78,82.6]
[1736668489535,20.0,186.79,186.78,82.6]
[1736668489711,8.92971867,186.8,186.78,82.6]
[1736668489909,8.92971867,186.79,186.78,82.6]
[1736668491407,20.0,186.76,186.75,0.15]
[1736668491608,28.92971867,186.76,186.75,0.15]
[1736668497956,20.0,186.76,186.75,0.15]
[1736668498134,8.92971867,186.76,186.75,0.15]
[1736668500061,126.07034678,186.84,186.75,82.75]
[1736668500261,8.92971867,186.77,186.75,82.75]
[1736668501540,20.0,186.76,186.75,82.75]
[1736668504474,8.92971867,186.77,186.75,82.75]
[1736668509472,20.0,186.76,186.75,82.75]
[1736668512553,8.92971867,186.77,186.75,82.75]
[1736668513775,8.92971867,186.76,186.75,82.75]
[1736668530920,20.0,186.79,186.75,82.75]
[1736668531140,20.0,186.76,186.75,82.75]
[1736668534824,20.0,186.79,186.75,82.75]
[1736668534993,28.92971867,186.79,186.75,82.75]
[1736668535316,20.0,186.82,186.75,82.75]
[1736668535524,8.92971867,186.79,186.75,82.75]
[1736668539695,8.92971867,186.78,186.75,82.75]
[1736668547432,8.92971867,186.79,186.75,82.75]
[1736668548529,8.92971867,186.8,186.75,82.75]
[1736668550121,8.92971867,186.79,186.75,82.75]
[1736668557935,8.92971867,186.78,186.75,82.75]